bitfinex-derivatives/quotes_BNBF0:USTF0_20250807
["timestamp","ask_amount","ask_price","bid_price","bid_amount"]
[1754586493396,0.954,773.38,773.13,0.86733979]
[1754586494101,0.954,773.38,773.1,0.86733979]
[1754586495297,0.954,773.38,772.17,2.861232]
[1754586495298,0.954,773.38,773.11,0.86733979]
[1754586497499,0.954,773.38,773.06,0.86733979]
[1754586497900,0.954,773.38,773.08,0.86733979]
[1754586498396,0.954,773.38,773.09,0.86733979]
[1754586499300,0.954,773.38,773.11,0.86733979]
[1754586499997,0.954,773.38,773.09,0.86733979]
[1754586500202,0.954,773.38,773.08,0.86733979]
[1754586500497,0.954,773.38,773.1,0.86733979]
[1754586500997,0.954,773.38,773.09,0.86733979]
[1754586501497,0.954,773.38,773.11,0.86733979]
[1754586502403,0.954,773.38,773.13,0.86733979]
[1754586502604,0.954,773.38,773.12,0.86733979]
[1754586503300,0.954,773.38,773.14,0.86733979]
[1754586503504,0.954,773.38,773.13,0.86733979]
[1754586503701,0.954,773.38,773.12,0.86733979]
[1754586504203,1.162,773.37,773.12,0.86733979]
[1754586504400,1.162,773.37,773.11,0.86733979]
[1754586504801,1.162,773.37,773.08,0.86733979]
[1754586505002,1.162,773.37,773.1,0.86733979]
[1754586506003,1.162,773.37,773.07,0.86733979]
[1754586506204,1.162,773.37,773.06,0.86733979]
[1754586506404,1.162,773.37,773.08,0.86733979]
[1754586506608,1.162,773.37,773.03,0.86733979]
[1754586507104,1.162,773.37,773.01,0.86733979]
[1754586507302,1.162,773.37,773.04,0.86733979]
[1754586508405,1.162,773.37,773.07,0.86733979]
[1754586508607,1.162,773.37,773.06,0.86733979]
[1754586508907,1.162,773.37,773.04,0.86733979]
[1754586509404,1.162,773.37,773.07,0.86733979]
[1754586509907,0.831,773.36,773.07,0.86733979]
[1754586510304,0.831,773.36,773.1,0.86733979]
[1754586512505,0.831,773.36,773.11,0.86733979]
[1754586512705,0.831,773.36,773.1,0.86733979]
[1754586512905,0.831,773.36,773.11,0.86733979]
[1754586513305,0.831,773.36,773.1,0.86733979]
[1754586513707,0.831,773.36,773.12,0.86733979]
[1754586514311,0.831,773.36,773.11,0.86733979]
[1754586514514,0.831,773.36,773.13,0.86733979]
[1754586514909,0.831,773.36,773.14,0.86733979]
[1754586515108,0.831,773.36,773.15,0.86733979]
[1754586515609,0.831,773.36,773.2,0.86733979]
[1754586515810,0.831,773.36,773.18,0.86733979]
[1754586516109,0.831,773.36,773.2,0.86733979]
[1754586516514,0.831,773.36,773.21,0.86733979]
[1754586517211,0.831,773.36,773.2,0.86733979]
[1754586523514,0.831,773.36,773.21,0.86733979]
[1754586524615,0.831,773.36,773.22,0.86733979]
[1754586524816,0.831,773.36,773.21,0.86733979]
[1754586525020,0.831,773.36,773.13,0.86733979]
[1754586525320,0.831,773.36,773.05,0.86733979]
[1754586526020,0.831,773.36,773.02,0.86733979]
[1754586526222,0.831,773.36,772.97,0.86733979]
[1754586527323,0.831,773.36,772.96,0.86733979]
[1754586529228,0.831,773.36,772.95,0.86733979]
[1754586530629,0.831,773.36,772.96,0.86733979]
[1754586531230,0.831,773.36,772.95,0.86733979]
[1754586532830,0.831,773.36,772.78,1.13835677]
[1754586532831,0.831,773.36,772.96,0.86733979]
[1754586533331,0.831,773.36,772.95,0.86733979]
[1754586533931,0.831,773.36,772.96,0.86733979]
[1754586534136,0.831,773.36,772.94,0.86733979]
[1754586535033,0.831,773.36,772.95,0.86733979]
[1754586535536,0.831,773.36,772.94,0.86733979]
[1754586535933,0.831,773.36,772.97,0.86733979]
[1754586536436,0.831,773.36,772.96,0.86733979]
[1754586536834,0.831,773.36,772.99,0.86733979]
[1754586537133,0.831,773.36,772.97,0.86733979]
[1754586537436,0.831,773.36,772.88,0.86733979]
[1754586537634,0.831,773.36,772.84,0.86733979]
[1754586537835,0.831,773.36,772.82,0.86733979]
[1754586538339,0.831,773.36,772.81,0.86733979]
[1754586539439,0.831,773.36,772.8,0.86733979]
[1754586540439,0.831,773.36,772.77,0.86733979]
[1754586541344,0.831,773.36,772.78,0.86733979]
[1754586541639,0.831,773.36,772.77,0.86733979]
[1754586541844,0.831,773.36,772.62,1.13835677]
[1754586542044,0.831,773.36,772.77,0.86777711]
[1754586542245,0.831,773.36,772.76,0.86777711]
[1754586542945,0.831,773.36,772.77,0.86777711]
[1754586543540,0.831,773.36,772.48,1.70753516]
[1754586543541,0.831,773.36,772.76,0.86777711]
[1754586544045,0.831,773.36,772.74,0.86777711]
[1754586545041,0.831,773.36,772.78,0.86777711]
[1754586547142,0.831,773.36,772.8,0.86777711]
[1754586549140,0.831,773.36,772.83,0.86777711]
[1754586550541,0.831,773.36,771.67,4.005724]
[1754586550542,0.831,773.36,772.93,0.86777711]
[1754586550744,0.831,773.36,772.94,0.86777711]
[1754586550941,0.831,773.36,772.95,0.86777711]
[1754586551344,0.831,773.36,772.96,0.86777711]
[1754586551846,0.831,773.36,772.95,0.86777711]
[1754586552044,0.831,773.36,772.94,0.86777711]
[1754586552448,0.831,773.36,772.95,0.86777711]
[1754586552845,0.831,773.36,772.96,0.86777711]
[1754586553045,0.831,773.36,773.0,0.86777711]
[1754586553650,0.831,773.36,772.84,1.13835677]
[1754586553651,0.831,773.36,773.04,0.86777711]
[1754586554345,0.831,773.36,773.05,0.86777711]
[1754586555150,0.831,773.36,773.06,0.86777711]
[1754586556252,0.831,773.36,773.07,0.86777711]
[1754586556956,1.228,773.87,773.07,0.86777711]
[1754586557155,0.85624803,773.86,773.07,0.86777711]
[1754586557351,0.85624803,773.85,773.08,0.86777711]
[1754586557555,0.85624803,773.84,773.08,0.86777711]
[1754586557753,0.85624803,773.83,773.08,0.86777711]
[1754586558056,0.85624803,773.82,773.08,0.86777711]
[1754586558250,0.85624803,773.81,773.08,0.86777711]
[1754586558455,0.85624803,773.8,773.08,0.86777711]
[1754586558651,0.85624803,773.79,773.08,0.86777711]
[1754586558849,0.85624803,773.78,773.08,0.86777711]
[1754586559051,0.85624803,773.86,773.08,0.86777711]
[1754586559251,0.85624803,773.86,772.93,1.13835677]
[1754586559252,0.85666118,773.85,773.09,0.86777711]
[1754586559455,0.85666118,773.84,773.09,0.86777711]
[1754586559655,0.85666118,773.83,773.09,0.86777711]
[1754586559953,0.85666118,773.82,773.09,0.86777711]
[1754586560156,0.85666118,773.81,773.09,0.86777711]
[1754586560351,0.85666118,773.81,772.79,1.70753516]
[1754586560352,0.85666118,773.8,773.1,0.86777711]
[1754586560556,0.85666118,773.8,773.11,0.86777711]
[1754586561152,0.85666118,773.8,773.1,0.86777711]
[1754586561356,0.85666118,773.8,773.11,0.86777711]
[1754586562258,0.85700302,773.79,773.12,0.86777711]
[1754586562455,0.85700302,773.78,773.12,0.86777711]
[1754586562660,0.85700302,773.77,773.13,0.86777711]
[1754586562860,0.85700302,773.76,773.14,0.86777711]
[1754586563058,0.85700302,773.75,773.14,0.86777711]
[1754586563259,0.85700302,773.74,773.14,0.86777711]
[1754586563459,0.85700302,773.73,773.14,0.86777711]
[1754586563660,0.843,773.81,773.14,0.86777711]
[1754586563862,0.85725086,773.8,773.14,0.86777711]
[1754586564055,0.85725086,773.79,773.14,0.86777711]
[1754586564258,0.85725086,773.78,773.15,0.86777711]
[1754586564455,0.843,773.81,773.15,0.86777711]
[1754586564456,0.85725086,773.77,773.15,0.86777711]
[1754586564658,0.85729821,773.76,773.13,0.86777711]
[1754586564957,0.85729821,773.75,773.13,0.86777711]
[1754586565158,0.85724767,773.74,773.13,0.86777711]
[1754586565357,0.843,773.81,773.13,0.86777711]
[1754586565559,0.85725323,773.8,773.13,0.86777711]
[1754586565759,0.85725323,773.79,773.13,0.86777711]
[1754586565959,0.85725323,773.78,773.13,0.86777711]
[1754586566157,0.85725323,773.77,773.13,0.86777711]
[1754586566355,0.843,773.81,773.13,0.86777711]
[1754586566356,0.85725323,773.76,773.13,0.86777711]
[1754586566560,0.85725323,773.75,773.13,0.86777711]
[1754586566758,0.843,773.81,773.14,0.86777711]
[1754586566961,0.85726433,773.8,773.14,0.86777711]
[1754586567162,0.85726433,773.79,773.14,0.86777711]
[1754586567456,0.85726433,773.78,773.14,0.86777711]
[1754586567658,0.843,773.81,773.14,0.86777711]
[1754586567860,0.843,773.81,773.13,0.86777711]
[1754586568059,0.843,773.81,773.16,0.86777711]
[1754586568259,0.843,773.81,773.2,0.86777711]
[1754586571166,0.843,773.81,772.87,1.70753516]
[1754586571167,0.843,773.81,773.21,0.86777711]
[1754586571963,0.843,773.81,773.19,0.86777711]
[1754586572365,0.843,773.81,773.01,1.13835677]
[1754586572366,0.843,773.81,773.18,0.86777711]
[1754586572563,0.843,773.81,773.24,0.86777711]
[1754586574467,0.843,773.81,773.23,0.86777711]
[1754586575767,0.843,773.81,773.22,0.86777711]
[1754586580271,0.843,773.81,773.21,0.86777711]
[1754586581372,0.843,773.81,773.2,0.86777711]
[1754586581675,0.843,773.81,773.24,0.86777711]
[1754586583276,0.843,773.81,773.23,0.86777711]
[1754586584173,1.066,773.8,773.23,0.86777711]
[1754586584477,1.066,773.8,773.22,0.86777711]
[1754586584677,1.066,773.8,773.26,0.86777711]
[1754586585277,1.066,773.8,773.25,0.86777711]
[1754586587080,1.066,773.8,773.24,0.86777711]
[1754586587280,1.066,773.8,773.25,0.86777711]
[1754586587576,1.066,773.8,773.24,0.86777711]
[1754586589283,1.066,773.8,773.23,0.86777711]
[1754586589483,1.066,773.8,772.44,0.22493044]
[1754586589484,1.066,773.8,773.22,0.86777711]
[1754586590288,1.066,773.8,773.23,0.86777711]
[1754586592085,1.066,773.8,773.22,0.86777711]
[1754586592687,1.066,773.8,773.21,0.86777711]
[1754586594489,1.066,773.8,773.23,0.86777711]
[1754586594687,1.066,773.8,773.19,0.86777711]
[1754586596393,1.066,773.8,773.15,0.86777711]
[1754586596789,1.066,773.8,773.16,0.86777711]
[1754586597291,1.066,773.8,773.0,1.13835677]
[1754586597292,1.066,773.8,773.17,0.86777711]
[1754586599396,1.066,773.8,773.18,0.86777711]
[1754586599593,1.066,773.8,772.44,0.22493044]
[1754586599594,1.066,773.8,773.17,0.86777711]
[1754586600897,1.066,773.8,773.16,0.86777711]
[1754586601794,1.066,773.8,773.17,0.86777711]
[1754586602098,1.066,773.8,773.16,0.86777711]
[1754586602294,1.066,773.8,773.17,0.86777711]
[1754586603197,1.066,773.8,773.18,0.86777711]
[1754586603497,1.066,773.8,773.0,1.13835677]
[1754586603498,1.066,773.8,773.19,0.86777711]
[1754586604201,1.066,773.8,773.17,0.86777711]
[1754586604400,1.066,773.8,773.18,0.86777711]
[1754586604597,1.066,773.8,773.19,0.86777711]
[1754586605401,1.066,773.8,773.2,0.86777711]
[1754586606001,1.066,773.8,773.21,0.86777711]
[1754586606201,1.066,773.8,773.2,0.86777711]
[1754586606401,1.066,773.8,773.21,0.86777711]
[1754586607600,1.066,773.8,773.22,0.86777711]
[1754586608305,1.066,773.8,773.23,0.86777711]
[1754586608801,0.85684507,773.79,773.21,0.86777711]
[1754586609105,0.85684507,773.78,773.21,0.86777711]
[1754586609405,0.85684507,773.77,773.22,0.86777711]
[1754586609604,0.843,773.81,773.22,0.86777711]
[1754586609800,0.8571487,773.8,773.22,0.86777711]
[1754586610001,0.8571487,773.79,773.21,0.86777711]
[1754586610203,0.8571487,773.78,773.23,0.86777711]
[1754586610505,0.843,773.81,772.44,0.22493044]
[1754586610506,0.843,773.81,773.27,0.86777711]
[1754586610800,0.85727929,773.8,773.27,0.86777711]
[1754586610999,1.091,773.8,773.28,0.86777711]
[1754586611201,1.091,773.8,773.29,0.86777711]
[1754586611807,0.85741607,773.79,773.28,0.86777711]
[1754586612003,1.091,773.8,773.28,0.86777711]
[1754586612203,0.85742332,773.79,773.28,0.86777711]
[1754586612407,0.85742332,773.78,773.28,0.86777711]
[1754586612605,1.091,773.8,773.28,0.86777711]
[1754586612804,0.85753712,773.79,773.28,0.86777711]
[1754586613006,0.85753712,773.78,773.28,0.86777711]
[1754586613205,1.091,773.8,773.29,0.86777711]
[1754586613506,0.8575721,773.79,773.29,0.86777711]
[1754586613713,0.8575721,773.78,773.29,0.86777711]
[1754586614011,1.091,773.8,773.29,0.86777711]
[1754586614207,0.85758174,773.79,773.29,0.86777711]
[1754586614409,0.85758174,773.78,773.29,0.86777711]
[1754586614713,0.85758174,773.77,773.29,0.86777711]
[1754586615008,1.091,773.8,773.29,0.86777711]
[1754586615209,1.091,773.8,773.41,0.86777711]
[1754586615608,1.091,773.8,773.4,0.86777711]
[1754586616009,1.091,773.8,773.41,0.86777711]
[1754586617012,1.091,773.8,773.42,0.86777711]
[1754586618314,1.091,773.8,773.41,0.86777711]
[1754586618513,1.091,773.8,773.42,0.86777711]
[1754586620416,1.091,773.8,773.19,1.13835677]
[1754586620616,1.091,773.8,773.42,0.86958088]
[1754586620912,1.091,773.8,773.37,0.86958088]
[1754586621111,1.091,773.8,772.44,0.22493044]
[1754586621112,1.219,773.79,773.38,0.86958088]
[1754586621416,1.219,773.79,773.37,0.86958088]
[1754586621615,1.219,773.79,772.44,0.22493044]
[1754586621616,1.219,773.79,773.36,0.86958088]
[1754586621816,1.219,773.79,773.35,0.86958088]
[1754586622915,1.219,773.79,773.33,0.86958088]
[1754586623420,1.219,773.79,773.26,0.86958088]
[1754586623718,0.85961814,773.78,773.19,0.86958088]
[1754586623919,0.85961814,773.77,773.19,0.86958088]
[1754586624218,0.85961814,773.76,773.19,0.86958088]
[1754586624418,0.85961814,773.75,773.2,0.86958088]
[1754586624619,0.85961814,773.74,773.2,0.86958088]
[1754586624817,0.85961814,773.73,773.17,0.86958088]
[1754586625020,0.85943565,773.72,773.17,0.86958088]
[1754586625215,0.85943565,773.71,773.17,0.86958088]
[1754586625419,0.85943565,773.7,773.16,0.86958088]
[1754586625716,0.85943565,773.69,773.16,0.86958088]
[1754586625919,0.85943565,773.68,773.16,0.86958088]
[1754586626118,0.85943565,773.67,773.16,0.86958088]
[1754586626315,0.85943565,773.66,773.16,0.86958088]
[1754586626618,1.219,773.79,773.16,0.86958088]
[1754586626816,0.85928791,773.78,773.16,0.86958088]
[1754586627113,0.85928791,773.77,773.16,0.86958088]
[1754586627316,0.85928791,773.76,773.12,0.86958088]
[1754586627517,0.85928791,773.75,773.12,0.86958088]
[1754586627817,1.72715049,773.74,773.08,0.86958088]
[1754586628017,0.85928791,773.73,773.08,0.86958088]
[1754586628221,0.85928791,773.72,773.05,0.86958088]
[1754586628416,0.85928791,773.71,773.05,0.86958088]
[1754586628717,0.85880191,773.7,773.05,0.86958088]
[1754586628915,0.85880191,773.69,773.05,0.86958088]
[1754586629119,0.85880191,773.68,773.05,0.86958088]
[1754586629317,0.85880191,773.67,773.04,0.86958088]
[1754586629515,0.85880191,773.66,773.02,0.86958088]
[1754586629719,0.85854602,773.65,773.02,0.86958088]
[1754586629921,0.85854602,773.64,773.04,0.86958088]
[1754586630120,0.85854602,773.63,772.99,0.86958088]
[1754586630316,0.85854602,773.62,772.98,0.86958088]
[1754586630519,0.85854602,773.61,772.98,0.86958088]
[1754586630715,0.85854602,773.6,772.98,0.86958088]
[1754586630916,0.85854602,773.59,772.95,0.86958088]
[1754586631115,0.85854602,773.58,772.95,0.86958088]
[1754586631317,0.85854602,773.57,772.92,0.86958088]
[1754586631517,0.85854602,773.56,772.87,0.86958088]
[1754586631715,0.85854602,773.55,772.86,0.86958088]
[1754586631920,0.85854602,773.54,772.86,0.86958088]
[1754586632117,0.86786258,773.71,772.86,0.86958088]
[1754586632320,0.85737851,773.7,772.85,0.86958088]
[1754586632522,0.85737851,773.69,772.85,0.86958088]
[1754586632718,0.85737851,773.68,772.85,0.86958088]
[1754586633022,0.85737851,773.67,772.84,0.86958088]
[1754586633324,1.219,773.79,772.44,0.22493044]
[1754586633325,0.85737851,773.66,772.82,0.86958088]
[1754586633517,0.85737851,773.65,772.82,0.86958088]
[1754586633718,0.85737851,773.64,772.82,0.86958088]
[1754586633922,0.85737851,773.63,772.82,0.86958088]
[1754586634122,0.85737851,773.62,772.82,0.86958088]
[1754586634321,0.85737851,773.61,772.8,0.86958088]
[1754586634524,0.85737851,773.6,772.8,0.86958088]
[1754586634825,0.85737851,773.59,772.8,0.86958088]
[1754586635021,0.85737851,773.58,772.79,0.86958088]
[1754586635326,0.85737851,773.57,772.78,0.86958088]
[1754586635625,0.85737851,773.56,772.78,0.86958088]
[1754586635924,0.85737851,773.55,772.74,0.86958088]
[1754586636125,0.85737851,773.54,772.74,0.86958088]
[1754586636323,0.85737851,773.53,772.73,0.86958088]
[1754586636526,1.69437851,773.52,772.72,0.86958088]
[1754586636728,1.69437851,773.52,772.75,0.86958088]
[1754586636729,0.85737851,773.51,772.75,0.86958088]
[1754586637023,0.85737851,773.5,772.75,0.86958088]
[1754586637220,0.837,773.52,772.74,0.86958088]
[1754586637422,0.85622724,773.51,772.74,0.86958088]
[1754586637626,0.85622724,773.5,772.74,0.86958088]
[1754586637823,0.85622724,773.49,772.74,0.86958088]
[1754586638126,0.837,773.52,772.74,0.86958088]
[1754586638326,0.85579455,773.51,772.73,0.86958088]
[1754586638523,0.85579455,773.5,772.75,0.86958088]
[1754586638729,0.837,773.52,772.75,0.86958088]
[1754586638925,0.85582238,773.51,772.75,0.86958088]
[1754586639131,0.837,773.52,772.75,0.86958088]
[1754586639429,0.8556659,773.51,772.74,0.86958088]
[1754586639629,0.85567246,773.5,772.74,0.86958088]
[1754586639829,0.837,773.52,772.74,0.86958088]
[1754586640031,0.85566958,773.51,772.74,0.86958088]
[1754586640332,0.85566958,773.5,772.73,0.86958088]
[1754586640531,0.837,773.52,772.71,0.86958088]
[1754586640734,0.837,773.52,772.44,0.22493044]
[1754586640735,0.85550455,773.51,772.69,0.86958088]
[1754586640928,0.85550455,773.5,772.7,0.86958088]
[1754586641128,0.85550455,773.49,772.7,0.86958088]
[1754586641335,0.85550455,773.48,772.69,0.86958088]
[1754586641626,0.85550455,773.47,772.69,0.86958088]
[1754586641827,0.85550455,773.46,772.69,0.86958088]
[1754586642032,0.837,773.52,772.69,0.86958088]
[1754586642228,0.85513737,773.51,772.69,0.86958088]
[1754586642432,0.85513737,773.5,772.68,0.86958088]
[1754586642629,0.85513737,773.49,772.68,0.86958088]
[1754586642932,0.85513737,773.48,772.68,0.86958088]
[1754586643130,0.85513737,773.47,772.69,0.86958088]
[1754586643430,0.85513737,773.46,772.69,0.86958088]
[1754586643637,0.837,773.52,772.69,0.86958088]
[1754586643837,0.85527755,773.51,772.69,0.86958088]
[1754586644037,0.85527755,773.5,772.67,0.86958088]
[1754586644237,0.85527755,773.49,772.66,0.86958088]
[1754586644536,0.85527755,773.48,772.66,0.86958088]
[1754586644732,0.85527755,773.47,772.66,0.86958088]
[1754586644936,0.85527755,773.46,772.66,0.86958088]
[1754586645133,0.85527755,773.45,772.66,0.86958088]
[1754586645433,0.837,773.52,772.64,0.86958088]
[1754586645637,0.85517412,773.51,772.64,0.86958088]
[1754586645836,0.837,773.52,772.64,0.86958088]
[1754586646038,0.85511582,773.51,772.64,0.86958088]
[1754586646235,0.85511582,773.5,772.63,0.86958088]
[1754586646435,0.85498473,773.49,772.63,0.86958088]
[1754586646639,0.85498473,773.48,772.63,0.86958088]
[1754586646937,0.85498473,773.47,772.63,0.86958088]
[1754586647139,0.85498473,773.46,772.63,0.86958088]
[1754586647339,0.85498473,773.45,772.62,0.86958088]
[1754586647540,0.85498473,773.44,772.63,0.86958088]
[1754586647740,0.85498473,773.43,772.62,0.86958088]
[1754586647937,0.837,773.52,772.62,0.86958088]
[1754586648142,0.85488575,773.51,772.62,0.86958088]
[1754586648340,0.85488575,773.5,772.62,0.86958088]
[1754586648641,0.85488575,773.49,772.61,0.86958088]
[1754586648836,0.85478753,773.48,772.61,0.86958088]
[1754586649036,0.85478753,773.47,772.61,0.86958088]
[1754586649238,0.85478753,773.46,772.61,0.86958088]
[1754586649538,0.85478753,773.45,772.61,0.86958088]
[1754586649742,0.85478753,773.44,772.61,0.86958088]
[1754586650042,0.85478753,773.43,772.61,0.86958088]
[1754586650341,1.236,773.43,772.6,0.86958088]
[1754586650539,1.236,773.43,772.61,0.86958088]
[1754586651038,0.8546309,773.42,772.61,0.86958088]
[1754586651238,1.236,773.43,772.61,0.86958088]
[1754586651539,0.85486131,773.42,772.61,0.86958088]
[1754586651739,1.236,773.43,772.61,0.86958088]
[1754586651938,0.85485783,773.42,772.61,0.86958088]
[1754586652139,1.236,773.43,772.6,0.86958088]
[1754586652338,1.236,773.43,772.59,0.86958088]
[1754586652841,1.236,773.43,772.6,0.86958088]
[1754586653442,1.236,773.43,772.44,1.36328721]
[1754586653443,1.236,773.43,772.59,0.86958088]
[1754586653641,1.236,773.43,772.6,0.86958088]
[1754586654043,1.236,773.43,772.59,0.86958088]
[1754586654541,1.236,773.43,772.6,0.86958088]
[1754586654939,0.85477654,773.42,772.59,0.86958088]
[1754586655138,1.236,773.43,772.59,0.86958088]
[1754586655342,0.85472288,773.42,772.59,0.86958088]
[1754586655541,1.236,773.43,772.59,0.86958088]
[1754586655744,0.85472187,773.42,772.59,0.86958088]
[1754586655946,1.236,773.43,772.59,0.86958088]
[1754586656244,0.85472535,773.42,772.59,0.86958088]
[1754586656448,1.236,773.43,772.57,0.86958088]
[1754586656745,0.85468848,773.42,772.57,0.86958088]
[1754586656944,0.85468848,773.41,772.57,0.86958088]
[1754586657145,0.85468848,773.4,772.57,0.86958088]
[1754586657343,1.236,773.43,772.53,0.86958088]
[1754586657549,0.8546337,773.42,772.53,0.86958088]
[1754586657748,0.8546337,773.41,772.53,0.86958088]
[1754586657948,0.8546337,773.4,772.53,0.86958088]
[1754586658148,0.8546337,773.39,772.52,0.86958088]
[1754586658350,0.8546337,773.38,772.51,0.86958088]
[1754586658545,0.8546337,773.37,772.51,0.86958088]
[1754586658748,0.8546337,773.36,772.52,0.86958088]
[1754586658949,0.8546337,773.35,772.52,0.86958088]
[1754586659249,1.236,773.43,772.52,0.86958088]
[1754586659443,0.8544422,773.42,772.51,0.86958088]
[1754586659648,0.8544422,773.41,772.51,0.86958088]
[1754586659850,0.8544422,773.4,772.52,0.86958088]
[1754586660149,0.8544422,773.39,772.52,0.86958088]
[1754586660444,0.8544422,773.38,772.52,0.86958088]
[1754586660648,0.8544422,773.37,772.52,0.86958088]
[1754586660950,0.8544422,773.36,772.51,0.86958088]
[1754586661150,1.236,773.43,772.5,0.86958088]
[1754586661351,0.85444197,773.42,772.52,0.86958088]
[1754586661546,0.85444197,773.41,772.52,0.86958088]
[1754586661749,0.85444197,773.4,772.52,0.86958088]
[1754586661948,0.85444197,773.39,772.52,0.86958088]
[1754586662148,0.85444197,773.38,772.52,0.86958088]
[1754586662352,1.236,773.43,772.52,0.86958088]
[1754586662554,0.8543861,773.42,772.52,0.86958088]
[1754586662753,0.8543861,773.41,772.52,0.86958088]
[1754586662954,0.8543861,773.4,772.52,0.86958088]
[1754586663152,0.8543861,773.39,772.52,0.86958088]
[1754586663354,1.236,773.43,772.52,0.86958088]
[1754586663555,0.85433992,773.42,772.52,0.86958088]
[1754586663854,0.85433992,773.41,772.52,0.86958088]
[1754586664051,0.85433992,773.4,772.52,0.86958088]
[1754586664257,0.85433992,773.39,772.52,0.86958088]
[1754586664555,1.236,773.43,772.6,0.86958088]
[1754586664753,0.85403879,773.42,772.6,0.86958088]
[1754586664954,1.236,773.43,772.58,0.86958088]
[1754586665156,0.85403956,773.42,772.61,0.86958088]
[1754586665352,1.236,773.43,772.63,0.86958088]
[1754586665651,1.236,773.43,772.44,0.22493044]
[1754586665652,1.236,773.43,772.65,0.86958088]
[1754586665851,1.236,773.43,772.66,0.86958088]
[1754586666452,1.236,773.43,772.67,0.86958088]
[1754586666754,1.236,773.43,772.66,0.86958088]
[1754586667259,1.236,773.43,772.71,0.86958088]
[1754586667555,1.236,773.43,772.75,0.86958088]
[1754586667757,1.236,773.43,772.78,0.86958088]
[1754586668256,1.236,773.43,772.79,0.86958088]
[1754586670462,1.236,773.43,772.8,0.86958088]
[1754586670760,1.236,773.43,772.79,0.86958088]
[1754586671264,1.236,773.43,772.8,0.86958088]
[1754586673365,1.236,773.43,772.62,1.13835677]
[1754586673366,1.236,773.43,772.81,0.86958088]
[1754586675166,1.236,773.43,772.82,0.86958088]
[1754586676266,1.236,773.43,772.83,0.86958088]
[1754586676466,1.236,773.43,772.84,0.86958088]
[1754586677266,1.236,773.43,772.89,0.86958088]
[1754586678269,1.236,773.43,772.91,0.86958088]
[1754586679371,1.236,773.43,772.93,0.86958088]
[1754586679870,1.236,773.43,772.61,1.70753516]
[1754586679871,1.236,773.43,772.94,0.86958088]
[1754586680272,1.236,773.43,772.95,0.86958088]
[1754586680768,1.236,773.43,772.96,0.86958088]
[1754586681271,1.236,773.43,772.98,0.86958088]
[1754586682269,1.236,773.43,773.0,0.86958088]
[1754586683271,1.236,773.43,773.01,0.86958088]
[1754586683468,1.236,773.43,773.02,0.86958088]
[1754586683673,0.927,773.42,773.01,0.86958088]
[1754586683871,0.927,773.42,773.02,0.86958088]
[1754586686470,0.927,773.42,773.01,0.86958088]
[1754586688172,0.927,773.42,773.03,0.86958088]
[1754586688371,0.927,773.42,773.02,0.86958088]
[1754586690076,0.927,773.42,773.01,0.86958088]
[1754586690277,0.927,773.42,773.02,0.86958088]
[1754586692174,0.927,773.42,773.01,0.86958088]
[1754586694982,0.927,773.42,772.96,0.86958088]
[1754586695582,0.927,773.42,772.93,0.86958088]
[1754586696083,0.927,773.42,772.92,0.86958088]
[1754586696283,0.927,773.42,772.91,0.86958088]
[1754586696882,1.236,773.43,772.91,0.86958088]
[1754586698385,1.236,773.43,772.91,0.86859401]
[1754586699182,1.175,773.42,772.91,0.86859401]
[1754586700281,1.175,773.42,772.92,0.86859401]
[1754586704987,1.175,773.42,772.92,0.86873764]
[1754586705388,1.175,773.42,772.96,0.86873764]
[1754586705888,1.175,773.42,772.81,1.13835677]
[1754586705889,1.175,773.42,772.97,0.86873764]
[1754586706588,1.175,773.42,772.96,0.86873764]
[1754586707090,0.865,773.41,772.96,0.86873764]
[1754586707987,0.865,773.41,772.98,0.86873764]
[1754586709694,0.865,773.41,772.99,0.86873764]
[1754586709891,0.865,773.41,772.85,1.13835677]
[1754586709892,0.865,773.41,773.0,0.86873764]
[1754586710591,0.865,773.41,772.99,0.86873764]
[1754586711192,0.865,773.41,773.06,0.86873764]
[1754586711491,0.865,773.41,772.99,0.86873764]
[1754586711894,0.865,773.41,772.98,0.86873764]
[1754586712692,0.865,773.41,773.0,0.86873764]
[1754586713397,0.865,773.41,773.06,0.86873764]
[1754586714093,0.865,773.41,773.19,0.86873764]
[1754586714296,0.865,773.41,773.22,0.86873764]